Workbook

Sheet Print, Digital, Social, Live
A3: Website ID | B3: Objekt | C3: Ausgaben pro Jahr | D3: Netto-Reichweite pro Ausgabe in Mio | E3: Zahlenformat für die Website: Reichweite/Ausgabe (Spalte F*1.000.000) | F3: Quelle Netto-Reichweite | G3: Auflage (Exemplare) | H3: Auflagenart (verkaufte Auflage gesamt & Durckauflage) | I3: Quelle Auflage | J3: Markenreichweite (Reichweite über alle Kanäle: Print, Digital, Social) in Mio. | K3: Zahlenformat für die Website: Markenreichweite (Spalte I*1.000.000) | L3: Quelle Markenreichweite | M3: Social Contacts (Summe aus Facebook und oder Instagram, Pinterest, YouTube, TikTok) | N3: Unique User | O3: Quelle Unique User (AGOF, Google Analytics) | P3: Page Impressions | Q3: Quelle Page Impressions (IVW, Google Analytics) | R3: Visits | S3: Quelle Visits (IVW, Google Analytics) | T3: Jahresauflage in Exemplare auf Basis Q1 2021 und Verlagsangabe (Formel E*K) | U3: Jahresauflage in Exemplare auf Basis Q4 2020 und Verlagsangabe (Formel E*K) | V3: Verkaufte Jahresauflage in Exemplare 2020 gesamt und Verlagsangabe* | W3: *Zahl ist umschlägig berechnet von Vertrieb
B4: Bauer Media | D4: =SUM(D5:D97) -> 35.13 | E4: =SUM(E5:E97) -> 35130000 | G4: =SUM(G5:G88) -> 9865285 | I4: IVW Q1/ 2021 & Verlagsangabe | M4: =SUM(M5:M88) -> 14787053 | N4: =SUM(N5:N88) -> 39864474 | P4: =SUM(P5:P88) -> 270807629 | R4: =SUM(R5:R88) -> 106865826 | T4: =SUM(T5:T88) -> 296208748 | U4: 296208748 | V4: 310000000
B5: Adel Exklusiv | C5: 12 | E5: =D5*1000000 -> 0 | G5: 65353 | H5: verkaufte Auflage gesamt | I5: IVW Q1/ 2021 | T5: =PRODUCT(C5,G5) -> 784236 | U5: 784236
A6: 11 | B6: Alles für die Frau | C6: 52 | D6: 0.44 | E6: =D6*1000000 -> 440000 | F6: ma Pressemedien I / 2021 | G6: 118484 | H6: verkaufte Auflage gesamt | I6: IVW Q1/ 2021 | T6: 6161168 | U6: 6161168
B7: Astrowoche | C7: 52 | E7: =D7*1000000 -> 0 | G7: 28091 | H7: verkaufte Auflage gesamt | I7: IVW Q1/ 2021 | T7: 1460732 | U7: 1460732
A8: 12 | B8: auf einen Blick | C8: 53 | D8: 1.61 | E8: =D8*1000000 -> 1610000 | F8: ma Pressemedien I / 2021 | G8: 613819 | H8: verkaufte Auflage gesamt | I8: IVW Q1/ 2021 | T8: 32532407 | U8: 32532407
A9: 14 | B9: AUTO ZEITUNG | C9: 25 | D9: 0.67 | E9: 670000 | F9: ma Pressemedien I / 2021 | G9: 104722 | H9: verkaufte Auflage gesamt | I9: IVW Q1/ 2021 | J9: 3.02 | K9: =J9*1000000 -> 3020000 | L9: b4p 2020 III (Basis gesamt) | T9: 2618050 | U9: 2618050
A10: 15 | B10: Auto Zeitung Classic Cars | C10: 12 | D10: 0.21 | E10: 210000 | F10: AWA 2020 / Gesamt Mio. | G10: 33255 | H10: verkaufte Auflage gesamt | I10: IVW Q1/ 2021 | J10: 3.02 | K10: =J10*1000000 -> 3020000 | L10: b4p 2020 III (Basis gesamt) | T10: 399060 | U10: 399060
A11: 32 | B11: autozeitung.de | J11: 3.02 | K11: 3020000 | L11: b4p 2020 III (Basis gesamt) | M11: 328470 | N11: 1810000 | O11: AGOF 2020/12 | P11: 12992593 | Q11: IVW 2020/12 | R11: 4158031 | S11: IVW 2020/12
A12: 20 | B12: Avanti | C12: 52 | D12: 0.28 | E12: 280000 | F12: ma Pressemedien I / 2021 | G12: 48528 | H12: verkaufte Auflage gesamt | I12: IVW Q1/ 2021 | T12: =PRODUCT(C12,G12) -> 2523456 | U12: 2523456
A13: 79 | B13: bella | C13: 52 | D13: 0.78 | E13: 780000 | F13: ma Pressemedien I / 2021 | G13: 66364 | H13: verkaufte Auflage gesamt | I13: IVW Q1/ 2021 | T13: =PRODUCT(C13,G13) -> 3450928 | U13: 3450928
A14: 64 | B14: BRAVO | C14: 13 | D14: 0.6 | E14: 600000 | F14: ma Pressemedien I / 2021 | G14: 66217 | H14: verkaufte Auflage gesamt | I14: IVW Q1/ 2021 | J14: 1.61 | K14: =J14*1000000 -> 1610000 | L14: b4p 2020 III (Basis gesamt) | M14: 1696570 | T14: =PRODUCT(C14,G14) -> 860821 | U14: 860821
A15: 67 | B15: BRAVO GiRL! | C15: 13 | D15: 0.33 | E15: 330000 | F15: AWA 2020 / Gesamt Mio. | G15: 31377 | H15: verkaufte Auflage gesamt | I15: IVW Q1/ 2021 | J15: 1.61 | K15: =J15*1000000 -> 1610000 | L15: b4p 2020 III (Basis gesamt) | M15: 217784 | T15: =PRODUCT(C15,G15) -> 407901 | U15: 407901
A16: 68 | B16: BRAVO Sport | C16: 13 | E16: 0 | G16: 38396 | H16: verkaufte Auflage gesamt | I16: IVW Q1/ 2021 | J16: 1.61 | K16: 1610000 | L16: b4p 2020 III (Basis gesamt) | M16: 79065 | T16: =PRODUCT(C16,G16) -> 499148 | U16: 499148
A17: 69 | B17: bravo.de | J17: 1.61 | K17: 1610000 | L17: b4p 2020 III (Basis gesamt) | M17: 1696570 | N17: 1199728 | O17: Google Analytics 2021/02 | P17: 5400454 | Q17: IVW 2020/12 | R17: 1904875 | S17: IVW 2020/12
A18: 86 | B18: cafemeins.de | M18: 44653 | N18: 9150 | O18: Google Analytics 2021/02 | P18: 97856 | Q18: Google Analytics 2021/02 | R18: 17691 | S18: Google Analytics 2021/02
A19: 48 | B19: Closer | C19: 52 | D19: 0.33 | E19: 330000 | F19: ma Pressemedien I / 2021 | G19: 69303 | H19: verkaufte Auflage gesamt | I19: IVW Q1/ 2021 | M19: 98702 | T19: =PRODUCT(C19,G19) -> 3603756 | U19: 3603756
A20: 46 | B20: Cosmopolitan | C20: 12 | D20: 1.17 | E20: 1170000 | F20: ma Pressemedien I / 2021 | G20: 156132 | H20: verkaufte Auflage gesamt | I20: IVW Q1/ 2021 | J20: 3.2 | K20: 3200000 | L20: b4p 2020 III (Basis gesamt) | T20: =PRODUCT(C20,G20) -> 1873584 | U20: 1873584
A21: 47 | B21: cosmopolitan.de | J21: 3.2 | K21: =J21*1000000 -> 3200000 | L21: b4p 2020 III (Basis gesamt) | M21: 378855 | N21: 4571313 | O21: IVW 2020/12 | P21: 10930320 | Q21: IVW 2020/12 | R21: 4571313 | S21: IVW 2020/12
A22: 21 | B22: DAS NEUE | C22: 52 | D22: 0.24 | E22: 240000 | F22: ma Pressemedien I / 2021 | G22: 73422 | H22: verkaufte Auflage gesamt | I22: IVW Q1/ 2021 | T22: =PRODUCT(C22,G22) -> 3817944 | U22: 3817944
A23: 22 | B23: DAS NEUE BLATT | C23: 52 | D23: 1.26 | E23: 1260000 | F23: ma Pressemedien I / 2021 | G23: 281520 | H23: verkaufte Auflage gesamt | I23: IVW Q1/ 2021 | T23: =PRODUCT(C23,G23) -> 14639040 | U23: 14639040
A24: 100 | B24: Fernsehwoche | C24: 53 | D24: 1.24 | E24: 1240000 | F24: ma Pressemedien I / 2021 | G24: 258504 | H24: verkaufte Auflage gesamt | I24: IVW Q1/ 2021 | T24: =PRODUCT(C24,G24) -> 13700712 | U24: 13700712
B25: Freizeiträtsel | C25: 9 | E25: 0 | G25: 90728 | H25: verkaufte Auflage gesamt | I25: IVW Q1/ 2021 | T25: =PRODUCT(C25,G25) -> 816552 | U25: 816552
A26: 23 | B26: FREIZEITWOCHE | C26: 52 | D26: 0.52 | E26: 520000 | F26: ma Pressemedien I / 2021 | G26: 341705 | H26: verkaufte Auflage gesamt | I26: IVW Q1/ 2021 | T26: =PRODUCT(C26,G26) -> 17768660 | U26: 17768660
A27: 93 | B27: Generation WOW by Meins | M27: 29722 | N27: 27852 | O27: AGOF 2020/12 | P27: 339629 | Q27: IVW 2020/12 | R27: 78576 | S27: IVW 2020/12
A28: 24 | B28: Good Food | C28: 9 | E28: =D28*1000000 -> 0 | G28: 85000 | H28: Druckauflage | I28: Verlagsangabe | T28: =PRODUCT(C28,G28) -> 765000 | U28: 765000
A29: 25 | B29: GOOD HEALTH | C29: 9 | E29: 0 | G29: 55182 | H29: verkaufte Auflage gesamt | I29: IVW Q1/ 2021 | T29: =PRODUCT(C29,G29) -> 496638 | U29: 496638
A30: 81 | B30: Happinez | C30: 8 | D30: 0.47 | E30: 470000 | F30: AWA 2020 / Gesamt Mio. | G30: 103839 | H30: verkaufte Auflage gesamt | I30: IVW Q1/ 2021 | T30: =PRODUCT(C30,G30) -> 830712 | U30: 830712
A31: 82 | B31: happinez.de | M31: 410600 | N31: 47281 | O31: Google Analytics 2021/02 | P31: 258921 | Q31: Google Analytics 2021/02 | R31: 65340 | S31: Google Analytics 2021/02
A32: 49 | B32: InTouch | C32: 52 | D32: 0.69 | E32: 690000 | F32: ma Pressemedien I / 2021 | G32: 61952 | H32: verkaufte Auflage gesamt | I32: IVW Q1/ 2021 | J32: 9.85 | K32: 9850000 | L32: b4p 2020 III (Basis gesamt) | T32: =PRODUCT(C32,G32) -> 3221504 | U32: 3221504
A33: 50 | B33: intouch-magazin.de | J33: 9.85 | K33: =J33*1000000 -> 9850000 | L33: b4p 2020 III (Basis gesamt) | M33: 1210911 | N33: 4700000 | O33: AGOF 2021/01 | P33: 17500000 | Q33: Google Analytics 2021/01 | R33: 12700000 | S33: Google Analytics 2021/01
A34: 54 | B34: kochen & genießen | C34: 12 | D34: 0.24 | E34: 240000 | F34: ma Pressemedien I / 2021 | G34: 96065 | H34: verkaufte Auflage gesamt | I34: IVW Q1/ 2021 | T34: =PRODUCT(C34,G34) -> 1152780 | U34: 1152780
A35: 83 | B35: Laura | C35: 52 | D35: 0.63 | E35: 630000 | F35: ma Pressemedien I / 2021 | G35: 85292 | H35: verkaufte Auflage gesamt | I35: IVW Q1/ 2021 | T35: =PRODUCT(C35,G35) -> 4435184 | U35: 4435184
A36: 19 | B36: LECKER | C36: 10 | D36: 0.62 | E36: 620000 | F36: ma Pressemedien I / 2021 | G36: 70952 | H36: verkaufte Auflage gesamt | I36: IVW Q1/ 2021 | J36: 8.04 | K36: 8040000 | L36: b4p 2020 III (Basis gesamt) | M36: 2039129 | T36: =PRODUCT(C36,G36) -> 709520 | U36: 709520
B37: LECKER Bookazine | C37: 3 | G37: 90000 | H37: Druckauflage | I37: Verlagsangabe | J37: 8.04 | K37: =J37*1000000 -> 8040000 | L37: b4p 2020 III (Basis gesamt) | T37: =PRODUCT(C37,G37) -> 270000 | U37: 270000
A38: 74 | B38: lecker.de | J38: 8.04 | K38: 8040000 | L38: b4p 2020 III (Basis gesamt) | M38: 2039129 | N38: 7190000 | O38: AGOF 2021/02 | P38: 84440000 | Q38: IVW 2020/12 | R38: 20500000 | S38: IVW 2021/02
B39: lesleyandcars | M39: 11617
A40: 26 | B40: liebenswert.de | N40: 2030000 | O40: AGOF 2021/01 | P40: 4700000 | Q40: Google Analytics 2021/01 | R40: 2990000 | S40: Google Analytics 2021/01
A41: 27 | B41: mach mal Pause | C41: 52 | D41: 0.64 | E41: 640000 | F41: ma Pressemedien I / 2021 | G41: 54159 | H41: verkaufte Auflage gesamt | I41: IVW Q1/ 2021 | T41: =PRODUCT(C41,G41) -> 2816268 | U41: 2816268
A42: 39 | B42: männersache.de | M42: 640317 | N42: 750000 | O42: AGOF 2021/02 | P42: 3730000 | Q42: IVW 2021/02 | R42: 2210000 | S42: IVW 2021/02
A43: 56 | B43: Mein Lieblingsrezept | C43: 12 | D43: 0.6 | E43: 600000 | F43: ma Pressemedien I / 2021 | G43: 39538 | H43: verkaufte Auflage gesamt | I43: IVW Q1/ 2021 | T43: =PRODUCT(C43,G43) -> 474456 | U43: 474456
A44: 101 | B44: mein tv & ich | C44: 26 | D44: 0.25 | E44: 250000 | F44: AWA 2020 / Gesamt Mio. | G44: 134579 | H44: verkaufte Auflage gesamt | I44: IVW Q1/ 2021 | T44: 3499054 | U44: 3499054
A45: 84 | B45: Meins | C45: 26 | D45: 0.28 | E45: 280000 | F45: ma Pressemedien I / 2021 | G45: 94919 | H45: verkaufte Auflage gesamt | I45: IVW Q1/ 2021 | N45: 9150 | O45: Google Analytics 2021/02 | P45: 97856 | Q45: Google Analytics 2021/02 | T45: 2467894 | U45: 2467894
A46: 28 | B46: Mini | C46: 52 | D46: 0.23 | E46: 230000 | F46: ma Pressemedien I / 2021 | G46: 44983 | H46: verkaufte Auflage gesamt | I46: IVW Q1/ 2021 | T46: 2339116 | U46: 2339116
A47: 30 | B47: Neue Post | C47: 52 | D47: 1.72 | E47: 1720000 | F47: ma Pressemedien I / 2021 | G47: 402994 | H47: verkaufte Auflage gesamt | I47: IVW Q1/ 2021 | T47: 20955688 | U47: 20955688
B48: Pflege & Familie | C48: 4 | E48: 0 | G48: 70000 | H48: Druckauflage | I48: Verlagsangabe | T48: 280000 | U48: 280000
A49: 31 | B49: Praxisvita | N49: 1900000 | O49: AGOF 2021/01 | P49: 7070000 | Q49: IVW 2021/01 | R49: 4110000 | S49: IVW 2021/01
A50: 33 | B50: PTA Woman | C50: 12 | E50: =D50*1000000 -> 0 | G50: 50000 | H50: Druckauflage | I50: Verlagsangabe | T50: =PRODUCT(C50,G50) -> 600000 | U50: 600000
A51: 34 | B51: Retro | C51: 12 | E51: 0 | G51: 85000 | H51: Druckauflage | I51: Verlagsangabe | T51: 1020000 | U51: 1020000
A52: 58 | B52: REZEPTE pur | C52: 12 | D52: 0.3 | E52: 300000 | F52: ma Pressemedien I / 2021 | G52: 59292 | H52: verkaufte Auflage gesamt | I52: IVW Q1/ 2021 | T52: 711504 | U52: 711504
A53: 35 | B53: Schöne WOCHE | C53: 52 | D53: 0.24 | E53: 240000 | F53: ma Pressemedien I / 2021 | G53: 127034 | H53: verkaufte Auflage gesamt | I53: IVW Q1/ 2021 | T53: 6605768 | U53: 6605768
A54: 41 | B54: selbst ist der Mann | C54: 12 | D54: 0.6 | E54: 600000 | F54: ma Pressemedien I / 2021 | G54: 56692 | H54: verkaufte Auflage gesamt | I54: IVW Q1/ 2021 | J54: 1.73 | K54: 1730000 | L54: b4p 2020 III (Basis gesamt) | M54: 365853 | T54: 680304 | U54: 680304
B55: selbst ist der Mann Sonderhefte | C55: 3 | E55: 0 | G55: 70000 | H55: Druckauflage | I55: Verlagsangabe | J55: 1.73 | K55: =J55*1000000 -> 1730000 | L55: b4p 2020 III (Basis gesamt) | T55: 210000 | U55: 210000
A56: 42 | B56: selbst.de | J56: 1.73 | K56: 1730000 | L56: b4p 2020 III (Basis gesamt) | M56: 365853 | N56: 990000 | O56: AGOF 2021/02 | P56: 5430000 | Q56: IVW 2021/02 | R56: 1760000 | S56: IVW 2021/02
A57: 89 | B57: tina | C57: 52 | D57: 2.26 | E57: 2260000 | F57: ma Pressemedien I / 2021 | G57: 267615 | H57: verkaufte Auflage gesamt | I57: IVW Q1/ 2021 | T57: =PRODUCT(C57,G57) -> 13915980 | U57: 13915980
A58: 61 | B58: tina Gesund & Fit | C58: 5 | E58: 0 | G58: 250000 | H58: Druckauflage davon 150.000 im Bundle mit Tina | I58: Verlagsangabe | T58: 1250000 | U58: 1250000
A59: 62 | B59: tina Koch&Back-Ideen | C59: 12 | D59: 0.95 | E59: 950000 | F59: ma Pressemedien I / 2021 | G59: 58437 | H59: verkaufte Auflage gesamt | I59: IVW Q1/ 2021 | T59: 701244 | U59: 701244
A60: 88 | B60: tina monthly | C60: 12 | E60: 0 | G60: 73000 | H60: Druckauflage | I60: Verlagsangabe | T60: 876000 | U60: 876000
A61: 107 | B61: tv14 | C61: 26 | D61: 4.11 | E61: =D61*1000000 -> 4110000 | F61: ma Pressemedien I / 2021 | G61: 1757624 | H61: verkaufte Auflage gesamt | I61: IVW Q1/ 2021 | T61: 45698224 | U61: 45698224
A62: 102 | B62: tv Hören und Sehen | C62: 53 | D62: 2.19 | E62: 2190000 | F62: ma Pressemedien I / 2021 | G62: 460050 | H62: verkaufte Auflage gesamt | I62: IVW Q1/ 2021 | T62: 24382650 | U62: 24382650
A63: 103 | B63: TV klar | C63: 53 | D63: 0.51 | E63: 510000 | F63: ma Pressemedien I / 2021 | G63: 100257 | H63: verkaufte Auflage gesamt | I63: IVW Q1/ 2021 | T63: 5313621 | U63: 5313621
A64: 104 | B64: TV Movie | C64: 26 | D64: 4.76 | E64: 4760000 | F64: ma Pressemedien I / 2021 | G64: 722968 | H64: verkaufte Auflage gesamt | I64: IVW Q1/ 2021 | J64: 11.47 | K64: 11470000 | L64: b4p 2020 III (Basis gesamt) | T64: 18797168 | U64: 18797168
A65: 108 | B65: tvmovie.de | J65: 11.47 | K65: =J65*1000000 -> 11470000 | L65: b4p 2020 III (Basis gesamt) | M65: 172739 | N65: 6250000 | O65: AGOF 2021/01 | P65: 64960000 | Q65: IVW 2021/01 | R65: 24730000 | S65: IVW 2021/01
A66: 105 | B66: tv pur | C66: 12 | D66: 0.97 | E66: 970000 | F66: ma Pressemedien I / 2021 | G66: 575856 | H66: verkaufte Auflage gesamt | I66: IVW Q1/ 2021 | T66: =PRODUCT(C66,G66) -> 6910272 | U66: 6910272
A67: 106 | B67: tv top | C67: 12 | E67: 0 | G67: 81701 | H67: verkaufte Auflage gesamt | I67: IVW Q1/ 2021 | T67: =PRODUCT(C67,G67) -> 980412 | U67: 980412
A68: 44 | B68: Welt der Wunder | C68: 12 | D68: 1.13 | E68: 1130000 | F68: ma Pressemedien I / 2021 | G68: 120756 | H68: verkaufte Auflage gesamt | I68: IVW Q1/ 2021 | T68: =PRODUCT(C68,G68) -> 1449072 | U68: 1449072
A69: 36 | B69: WOCHE HEUTE | C69: 52 | E69: 0 | G69: 133294 | H69: verkaufte Auflage gesamt | I69: IVW Q1/ 2021 | T69: =PRODUCT(C69,G69) -> 6931288 | U69: 6931288
A70: 63 | B70: WOHNIDEE | C70: 12 | D70: 0.38 | E70: 380000 | F70: ma Pressemedien I / 2021 | G70: 77271 | H70: verkaufte Auflage gesamt | I70: IVW Q1/ 2021 | M70: 735006 | T70: =PRODUCT(C70,G70) -> 927252 | U70: 927252
A71: 75 | B71: wunderweib.de | M71: 1960000 | N71: 8380000 | O71: AGOF 2021/01 | P71: 52860000 | Q71: IVW 2021/01 | R71: 27070000 | S71: IVW 2021/01
B72: BLOOM's
A73: 51 | B73: Bloom`s Deco | C73: 6 | E73: =D73*1000000 -> 0 | G73: 33750 | H73: verkaufte Auflage gesamt | I73: IVW Q1/ 2021 | M73: 51476 | T73: =PRODUCT(C73,G73) -> 202500 | U73: 202500
B74: Falkemedia
A75: 29 | B75: NaturApotheke | C75: 4 | E75: =D75*1000000 -> 0 | G75: 82000 | H75: Druckauflage | I75: Verlagsangabe | T75: =PRODUCT(C75,G75) -> 328000 | U75: 328000
A76: 57 | B76: mein Zaubertopf | C76: 6 | E76: =D76*1000000 -> 0 | G76: 67652 | H76: verkaufte Auflage gesamt | I76: IVW Q1/ 2021 | T76: =PRODUCT(C76,G76) -> 405912 | U76: 405912
A77: 55 | B77: LandGenuss | C77: 6 | E77: =D77*1000000 -> 0 | G77: 14578 | H77: verkaufte Auflage gesamt | I77: IVW Q1/ 2021 | T77: =PRODUCT(C77,G77) -> 87468 | U77: 87468
A78: 59 | B78: So is(s)t Italien | C78: 6 | E78: =D78*1000000 -> 0 | G78: 29516 | H78: verkaufte Auflage gesamt | I78: IVW Q1/ 2021 | T78: =PRODUCT(C78,G78) -> 177096 | U78: 177096
B79: Ocean.Global
A80: 37 | B80: Freemen's World | C80: 5 | E80: =D80*1000000 -> 0 | G80: 25000 | H80: verkaufte Auflage gesamt | I80: Verlagsangabe | T80: =PRODUCT(C80,G80) -> 125000 | U80: 125000
A81: 72 | B81: Joy | C81: 12 | D81: 0.43 | E81: 430000 | F81: ma Pressemedien I / 2021 | G81: 105950 | H81: verkaufte Auflage gesamt | I81: IVW Q1/ 2021 | M81: 88969 | T81: 1271400 | U81: 1271400
A82: 38 | B82: Kitelife | C82: 6 | E82: 0 | G82: 16800 | H82: verkaufte Auflage gesamt | I82: Verlagsangabe | T82: 100800 | U82: 100800
A83: 40 | B83: Materialist | C83: 4 | E83: 0 | G83: 24600 | H83: verkaufte Auflage gesamt | I83: Verlagsangabe | T83: 98400 | U83: 98400
A84: 70 | B84: Maxi | C84: 11 | E84: 0 | G84: 89364 | H84: verkaufte Auflage gesamt | I84: IVW Q1/ 2021 | T84: 983004 | U84: 983004
A85: 87 | B85: Shape | C85: 10 | D85: 0.25 | E85: 250000 | F85: ma Pressemedien I / 2021 | G85: 107854 | H85: verkaufte Auflage gesamt | I85: IVW Q1/ 2021 | M85: 125063 | T85: 1078540 | U85: 1078540
A86: 43 | B86: Silent World | C86: 4 | E86: 0 | G86: 17300 | H86: verkaufte Auflage gesamt | I86: Verlagsangabe | T86: 69200 | U86: 69200
A87: 73 | B87: Smilla | C87: 5 | E87: 0 | G87: 135000 | H87: Druckauflage | I87: Verlagsangabe | T87: 675000 | U87: 675000
B88: Windsurfing Jahrbuch | C88: 1 | E88: =D88*1000000 -> 0 | G88: 13700 | H88: verkaufte Auflage gesamt | I88: Verlagsangabe | T88: 13700 | U88: 13700

Sheet Legende & To Do's
A1: Datentabelle baueradvance.com
A2: Legende & To Do's
A4: Legende
A5: Werte für die Startseite (Summen) sind gelb umrandet. Diese werden händisch auf der Website eingepflegt.
A6: Werte bzw. Spalten, die von den Teams auszufüllen/zu aktualisieren sind, sind oberhalb der Tabelle hellblau markiert.
A7: Werte bzw. Spalten, die auf die Brand Einzelseiten übertragen werden sind gelb markiert. (Ab Zeile 5)
A10: To Do's für die Teams
A11: Bitte ausfüllen/aktualisieren:
A12: Spalte C | B12: Ausgaben pro Jahr
A13: Spalte D | B13: Nettoreichweite in Mio.
A14: Spalte F | B14: Quelle Netto-Reichweite (ma, AWA)
A15: Spalte G | B15: Auflage (Exemplare)
A16: Spalte H | B16: Auflagenart (verkaufte Auflage, Druckauflage)
A17: Spalte I | B17: Quelle Auflage (IVW, Verlagsangabe)
A18: Spalte J | B18: Markenreichweite (Reichweite über alle Kanäle: Print, Digital, Social) in Mio. (Quelle b4p Basis gesamt)
A19: Spalte M | B19: Social Contacts (Summe aus Social Media)
A20: Spalte N | B20: Unique User
A21: Spalte O | B21: Quelle Unique User (AGOF, Google Analytics)
A22: Spalte P | B22: Page Impressions
A23: Spalte Q | B23: Quelle Page Impressions (IVW, Google Analytics)
A24: Spalte R | B24: Visits
A25: Spalte S | B25: Quelle Visits (IVW, Google Analytics)
A27: Bitte diese verformelten Spalten nicht ausfüllen:
A28: Spalte E | B28: Zahlenformat für die Website (Nettoreichweite)
A29: Spalte K | B29: Zahlenformat für die Website (Markenreichweite)
A30: Spalte T | B30: Jahresauflage in Exemplare auf Basis Q1 2021
A31: Spalte U | B31: Jahresauflagein Exemplare auf Basis Q4 2020
